[Event "Titled Tuesday Blitz May 23 Early 2023"]
[White "Kovalevsky, Stanislav"]
[Black "Volkov, Maksim"]
[WhiteFideId "13508598"]
[BlackFideId "54123070"]
[WhiteElo "2174"]
[BlackElo "2297"]
[Result "0-1"]
[Round "05"]
[TimeControl "180+2"]
[Date "2023.05.23"]
[WhiteClock "0:00:00"]
[BlackClock "0:00:06"]

1. c4 {[%clk 0:03:00]}  e6 {[%clk 0:02:57]} 2. e4 {[%clk 0:02:59]}  d5 {[%clk 0:02:51]} 3. exd5 {[%clk 0:03:00]}  exd5 {[%clk 0:02:51]} 4. cxd5 {[%clk 0:03:01]}  Nf6 {[%clk 0:02:50]} 5. Nc3 {[%clk 0:03:02]}  Nxd5 {[%clk 0:02:48]} 6. Bc4 {[%clk 0:03:03]}  Nb6 {[%clk 0:02:42]} 7. Bb3 {[%clk 0:03:03]}  Be7 {[%clk 0:02:41]} 8. d4 {[%clk 0:03:02]}  O-O {[%clk 0:02:40]} 9. Nge2 {[%clk 0:02:59]}  Nc6 {[%clk 0:02:40]} 10. O-O {[%clk 0:02:58]}  Bg4 {[%clk 0:02:40]} 11. f3 {[%clk 0:02:59]}  Bh5 {[%clk 0:02:40]} 12. Be3 {[%clk 0:02:59]}  Re8 {[%clk 0:02:36]} 13. Nf4 {[%clk 0:02:52]}  Bg5 {[%clk 0:02:26]} 14. Nxh5 {[%clk 0:02:46]}  Bxe3+ {[%clk 0:02:24]} 15. Kh1 {[%clk 0:02:47]}  Nxd4 {[%clk 0:02:22]} 16. Ne4 {[%clk 0:02:31]}  Qh4 {[%clk 0:02:03]} 17. g4 {[%clk 0:01:41]}  Rad8 {[%clk 0:02:00]} 18. Re1 {[%clk 0:01:31]}  Bg5 {[%clk 0:01:14]} 19. Qd3 {[%clk 0:00:28]}  Be7 {[%clk 0:01:00]} 20. Rad1 {[%clk 0:00:20]}  Bb4 {[%clk 0:00:56]} 21. Rf1 {[%clk 0:00:16]}  a5 {[%clk 0:00:51]} 22. a3 {[%clk 0:00:16]}  Bf8 {[%clk 0:00:50]} 23. Qe3 {[%clk 0:00:13]}  c5 {[%clk 0:00:33]} 24. Ba2 {[%clk 0:00:11]}  Kh8 {[%clk 0:00:29]} 25. Bxf7 {[%clk 0:00:09]}  Re7 {[%clk 0:00:30]} 26. Ba2 {[%clk 0:00:09]}  Rde8 {[%clk 0:00:28]} 27. Qg5 {[%clk 0:00:09]}  Qxg5 {[%clk 0:00:20]} 28. Nxg5 {[%clk 0:00:10]}  h6 {[%clk 0:00:19]} 29. Nf7+ {[%clk 0:00:09]}  Kh7 {[%clk 0:00:19]} 30. g5 {[%clk 0:00:09]}  Kg6 {[%clk 0:00:18]} 31. Nf4+ {[%clk 0:00:08]}  Kf5 {[%clk 0:00:19]} 32. Nd3 {[%clk 0:00:07]}  c4 {[%clk 0:00:18]} 33. gxh6 {[%clk 0:00:05]}  Rxf7 {[%clk 0:00:14]} 34. h7 {[%clk 0:00:06]}  Be7 {[%clk 0:00:14]} 35. Nf2 {[%clk 0:00:04]}  Ne6 {[%clk 0:00:10]} 36. Ng4 {[%clk 0:00:03]}  Rh8 {[%clk 0:00:09]} 37. Bb1+ {[%clk 0:00:03]}  Kg5 {[%clk 0:00:07]} 38. Rde1 {[%clk 0:00:03]}  Nf4 {[%clk 0:00:06]} 39. Re5+ {[%clk 0:00:00]}  Kh4 {[%clk 0:00:06]} 0-1


[Site "https://www.chess.com"]

[Event "Titled Tuesday Blitz May 23 Early 2023"]
[White "Tsyhanchuk, Stanislav"]
[Black "Chan, Luis"]
[WhiteFideId "13505130"]
[BlackFideId "3216357"]
[WhiteElo "2173"]
[BlackElo "2127"]
[Result "1-0"]
[Round "05"]
[TimeControl "180+2"]
[Date "2023.05.23"]
[WhiteClock "0:00:03"]
[BlackClock "0:00:05"]

1. c4 {[%clk 0:03:00]}  Nf6 {[%clk 0:02:59]} 2. Nc3 {[%clk 0:03:00]}  g6 {[%clk 0:02:59]} 3. e4 {[%clk 0:03:00]}  d6 {[%clk 0:02:58]} 4. d4 {[%clk 0:03:00]}  Bg7 {[%clk 0:02:58]} 5. f4 {[%clk 0:03:01]}  O-O {[%clk 0:02:55]} 6. Nf3 {[%clk 0:03:01]}  c5 {[%clk 0:02:36]} 7. d5 {[%clk 0:03:00]}  e6 {[%clk 0:02:27]} 8. Be2 {[%clk 0:03:00]}  exd5 {[%clk 0:02:27]} 9. exd5 {[%clk 0:03:01]}  Re8 {[%clk 0:02:24]} 10. O-O {[%clk 0:03:01]}  Bf5 {[%clk 0:02:08]} 11. Bd3 {[%clk 0:03:00]}  Ne4 {[%clk 0:01:59]} 12. Nxe4 {[%clk 0:02:59]}  Bxe4 {[%clk 0:02:00]} 13. Bxe4 {[%clk 0:02:59]}  Rxe4 {[%clk 0:02:01]} 14. Ng5 {[%clk 0:02:59]}  Rxc4 {[%clk 0:01:55]} 15. Qe2 {[%clk 0:02:59]}  Rd4 {[%clk 0:01:41]} 16. f5 {[%clk 0:02:57]}  h6 {[%clk 0:00:54]} 17. Nxf7 {[%clk 0:02:56]}  Qf6 {[%clk 0:00:34]} 18. Qe8+ {[%clk 0:02:33]}  Kh7 {[%clk 0:00:34]} 19. fxg6+ {[%clk 0:02:30]}  Qxg6 {[%clk 0:00:34]} 20. Bf4 {[%clk 0:02:11]}  Re4 {[%clk 0:00:28]} 21. Qc8 {[%clk 0:01:18]}  Qxf7 {[%clk 0:00:19]} 22. Bxd6 {[%clk 0:01:18]}  Qd7 {[%clk 0:00:17]} 23. Qxd7 {[%clk 0:00:57]}  Nxd7 {[%clk 0:00:18]} 24. Rf7 {[%clk 0:00:57]}  Nf6 {[%clk 0:00:18]} 25. Rf1 {[%clk 0:00:50]}  Kg6 {[%clk 0:00:18]} 26. Rxb7 {[%clk 0:00:46]}  Rd8 {[%clk 0:00:18]} 27. Bxc5 {[%clk 0:00:28]}  Rxd5 {[%clk 0:00:17]} 28. Bb4 {[%clk 0:00:28]}  Ng4 {[%clk 0:00:14]} 29. Bc3 {[%clk 0:00:22]}  Bxc3 {[%clk 0:00:11]} 30. bxc3 {[%clk 0:00:23]}  Ne3 {[%clk 0:00:11]} 31. Rc1 {[%clk 0:00:21]}  Rd2 {[%clk 0:00:10]} 32. g3 {[%clk 0:00:18]}  Rxa2 {[%clk 0:00:09]} 33. Rc7 {[%clk 0:00:16]}  Rc4 {[%clk 0:00:08]} 34. Re7 {[%clk 0:00:14]}  Nd5 {[%clk 0:00:08]} 35. Re6+ {[%clk 0:00:12]}  Kf7 {[%clk 0:00:08]} 36. Rxh6 {[%clk 0:00:12]}  Nxc3 {[%clk 0:00:08]} 37. Rf1+ {[%clk 0:00:10]}  Ke7 {[%clk 0:00:07]} 38. Rh7+ {[%clk 0:00:10]}  Kd6 {[%clk 0:00:07]} 39. Rh6+ {[%clk 0:00:09]}  Ke5 {[%clk 0:00:07]} 40. Rh5+ {[%clk 0:00:09]}  Kd4 {[%clk 0:00:06]} 41. Rf2 {[%clk 0:00:05]}  Rxf2 {[%clk 0:00:05]} 42. Kxf2 {[%clk 0:00:06]}  Ne4+ {[%clk 0:00:05]} 43. Kf3 {[%clk 0:00:06]}  Rc3+ {[%clk 0:00:06]} 44. Kf4 {[%clk 0:00:05]}  Nd2 {[%clk 0:00:05]} 45. Rh8 {[%clk 0:00:04]}  Rc7 {[%clk 0:00:04]} 46. Rd8+ {[%clk 0:00:04]}  Kc3 {[%clk 0:00:04]} 47. h4 {[%clk 0:00:04]}  a5 {[%clk 0:00:04]} 48. Ra8 {[%clk 0:00:05]}  Nc4 {[%clk 0:00:04]} 49. h5 {[%clk 0:00:05]}  Rf7+ {[%clk 0:00:04]} 50. Kg5 {[%clk 0:00:05]}  Rg7+ {[%clk 0:00:04]} 51. Kh4 {[%clk 0:00:04]}  Kb4 {[%clk 0:00:04]} 52. h6 {[%clk 0:00:04]}  Rg6 {[%clk 0:00:04]} 53. h7 {[%clk 0:00:01]}  Rxg3 {[%clk 0:00:05]} 54. h8=Q {[%clk 0:00:01]}  Rd3 {[%clk 0:00:04]} 55. Qb8+ {[%clk 0:00:02]}  Kc3 {[%clk 0:00:04]} 56. Qc7 {[%clk 0:00:02]}  Kb3 {[%clk 0:00:04]} 57. Rxa5 {[%clk 0:00:01]}  Nxa5 {[%clk 0:00:05]} 58. Qxa5 {[%clk 0:00:02]}  Rd4+ {[%clk 0:00:05]} 59. Kg3 {[%clk 0:00:03]}  Rd3+ {[%clk 0:00:06]} 60. Kf4 {[%clk 0:00:03]}  Rd4+ {[%clk 0:00:06]} 61. Ke5 {[%clk 0:00:04]}  Ra4 {[%clk 0:00:07]} 62. Qd5+ {[%clk 0:00:03]}  Kb4 {[%clk 0:00:06]} 63. Qd3 {[%clk 0:00:03]}  Ra5+ {[%clk 0:00:06]} 64. Kd4 {[%clk 0:00:03]}  Rb5 {[%clk 0:00:06]} 65. Qb1+ {[%clk 0:00:03]}  Ka5 {[%clk 0:00:07]} 66. Qa2+ {[%clk 0:00:03]}  Kb6 {[%clk 0:00:07]} 67. Kc4 {[%clk 0:00:04]}  Rc5+ {[%clk 0:00:08]} 68. Kd4 {[%clk 0:00:04]}  Rc6 {[%clk 0:00:08]} 69. Qa4 {[%clk 0:00:04]}  Kc7 {[%clk 0:00:07]} 70. Kd5 {[%clk 0:00:04]}  Rd6+ {[%clk 0:00:08]} 71. Kc5 {[%clk 0:00:05]}  Re6 {[%clk 0:00:06]} 72. Qa7+ {[%clk 0:00:05]}  Kd8 {[%clk 0:00:07]} 73. Kd5 {[%clk 0:00:05]}  Rf6 {[%clk 0:00:05]} 74. Qb8+ {[%clk 0:00:04]}  Ke7 {[%clk 0:00:06]} 75. Qc7+ {[%clk 0:00:04]}  Ke8 {[%clk 0:00:06]} 76. Ke5 {[%clk 0:00:04]}  Rf7 {[%clk 0:00:06]} 77. Qc8+ {[%clk 0:00:04]}  Ke7 {[%clk 0:00:07]} 78. Qc5+ {[%clk 0:00:04]}  Ke8 {[%clk 0:00:07]} 79. Ke6 {[%clk 0:00:04]}  Rd7 {[%clk 0:00:06]} 80. Qc8+ {[%clk 0:00:03]}  Rd8 {[%clk 0:00:06]} 81. Qc7 {[%clk 0:00:03]}  Rd6+ {[%clk 0:00:03]} 82. Kxd6 {[%clk 0:00:02]}  Kf8 {[%clk 0:00:03]} 83. Ke6 {[%clk 0:00:02]}  Kg8 {[%clk 0:00:04]} 84. Kf6 {[%clk 0:00:03]}  Kh8 {[%clk 0:00:05]} 85. Qg7# {[%clk 0:00:03]} 1-0


[Site "https://www.chess.com"]

[Event "Titled Tuesday Blitz May 23 Early 2023"]
[White "Makarian, Rudik"]
[Black "HamedWafa4"]
[WhiteFideId "44105681"]
[WhiteElo "2461"]
[BlackElo "2596"]
[Result "0-1"]
[Round "05"]
[TimeControl "180+2"]
[Date "2023.05.23"]
[WhiteClock "0:01:02"]
[BlackClock "0:00:28"]

1. d4 {[%clk 0:02:59]}  Nf6 {[%clk 0:02:59]} 2. c4 {[%clk 0:03:00]}  e6 {[%clk 0:02:54]} 3. Nf3 {[%clk 0:03:00]}  Bb4+ {[%clk 0:02:54]} 4. Bd2 {[%clk 0:02:59]}  Bxd2+ {[%clk 0:02:54]} 5. Qxd2 {[%clk 0:03:00]}  O-O {[%clk 0:02:54]} 6. Nc3 {[%clk 0:03:01]}  d6 {[%clk 0:02:53]} 7. e4 {[%clk 0:03:00]}  Nc6 {[%clk 0:02:53]} 8. Be2 {[%clk 0:02:56]}  e5 {[%clk 0:02:52]} 9. O-O {[%clk 0:02:53]}  Bg4 {[%clk 0:02:51]} 10. d5 {[%clk 0:02:42]}  Bxf3 {[%clk 0:02:46]} 11. Bxf3 {[%clk 0:02:40]}  Nd4 {[%clk 0:02:46]} 12. Bd1 {[%clk 0:02:41]}  a5 {[%clk 0:02:44]} 13. Kh1 {[%clk 0:02:26]}  Nd7 {[%clk 0:02:41]} 14. Ne2 {[%clk 0:02:20]}  Nxe2 {[%clk 0:02:38]} 15. Bxe2 {[%clk 0:02:21]}  Nc5 {[%clk 0:02:31]} 16. f3 {[%clk 0:02:21]}  f5 {[%clk 0:02:30]} 17. exf5 {[%clk 0:02:21]}  Rxf5 {[%clk 0:02:31]} 18. b3 {[%clk 0:02:21]}  Qh4 {[%clk 0:02:25]} 19. g3 {[%clk 0:02:20]}  Qf6 {[%clk 0:02:14]} 20. Rab1 {[%clk 0:02:17]}  b6 {[%clk 0:02:04]} 21. a3 {[%clk 0:02:17]}  a4 {[%clk 0:02:02]} 22. b4 {[%clk 0:02:14]}  Nb3 {[%clk 0:02:02]} 23. Qe3 {[%clk 0:02:14]}  Nd4 {[%clk 0:02:00]} 24. Kg2 {[%clk 0:02:09]}  Rf8 {[%clk 0:01:55]} 25. Rf2 {[%clk 0:02:04]}  Qg5 {[%clk 0:01:35]} 26. Qxg5 {[%clk 0:02:01]}  Rxg5 {[%clk 0:01:35]} 27. Bd1 {[%clk 0:01:59]}  Rgf5 {[%clk 0:01:32]} 28. h4 {[%clk 0:01:54]}  h6 {[%clk 0:01:29]} 29. Rc1 {[%clk 0:01:49]}  g5 {[%clk 0:01:15]} 30. hxg5 {[%clk 0:01:43]}  hxg5 {[%clk 0:01:15]} 31. Rc3 {[%clk 0:01:39]}  g4 {[%clk 0:01:08]} 32. f4 {[%clk 0:01:39]}  exf4 {[%clk 0:01:04]} 33. Bxg4 {[%clk 0:01:20]}  Rg5 {[%clk 0:00:56]} 34. Bd1 {[%clk 0:01:18]}  b5 {[%clk 0:00:31]} 35. Rd3 {[%clk 0:01:11]}  Rxg3+ {[%clk 0:00:28]} 36. Rxg3+ {[%clk 0:01:10]}  fxg3 {[%clk 0:00:28]} 37. Rd2 {[%clk 0:01:06]}  Nb3 {[%clk 0:00:28]} 38. Bxb3 {[%clk 0:01:06]}  axb3 {[%clk 0:00:29]} 39. cxb5 {[%clk 0:01:02]}  Rf2+ {[%clk 0:00:28]} 0-1


[Site "https://www.chess.com"]

[Event "Titled Tuesday Blitz May 23 Early 2023"]
[White "Samunenkov, Ihor"]
[Black "Danielyan, Vahe"]
[WhiteFideId "14187086"]
[BlackFideId "13304828"]
[WhiteElo "2457"]
[BlackElo "2423"]
[Result "1/2-1/2"]
[Round "05"]
[TimeControl "180+2"]
[Date "2023.05.23"]
[WhiteClock "0:00:05"]
[BlackClock "0:00:05"]

1. e4 {[%clk 0:03:00]}  c6 {[%clk 0:03:00]} 2. d4 {[%clk 0:02:58]}  d5 {[%clk 0:03:00]} 3. e5 {[%clk 0:02:59]}  Bf5 {[%clk 0:03:00]} 4. Nf3 {[%clk 0:02:58]}  e6 {[%clk 0:03:00]} 5. Be2 {[%clk 0:02:59]}  Ne7 {[%clk 0:02:58]} 6. O-O {[%clk 0:02:58]}  c5 {[%clk 0:02:49]} 7. dxc5 {[%clk 0:02:50]}  Nec6 {[%clk 0:02:49]} 8. c4 {[%clk 0:02:37]}  d4 {[%clk 0:02:33]} 9. Bd3 {[%clk 0:02:37]}  Bxd3 {[%clk 0:02:30]} 10. Qxd3 {[%clk 0:02:37]}  Na6 {[%clk 0:02:26]} 11. a3 {[%clk 0:02:31]}  Nxc5 {[%clk 0:02:25]} 12. Qd1 {[%clk 0:02:32]}  a5 {[%clk 0:02:23]} 13. b3 {[%clk 0:02:30]}  Be7 {[%clk 0:02:15]} 14. Bb2 {[%clk 0:02:23]}  O-O {[%clk 0:02:14]} 15. Qc2 {[%clk 0:01:42]}  f6 {[%clk 0:02:00]} 16. exf6 {[%clk 0:01:40]}  Bxf6 {[%clk 0:02:00]} 17. Nbd2 {[%clk 0:01:41]}  Qb6 {[%clk 0:01:39]} 18. Rab1 {[%clk 0:01:40]}  Rad8 {[%clk 0:01:35]} 19. Rfe1 {[%clk 0:01:38]}  d3 {[%clk 0:01:15]} 20. Qc1 {[%clk 0:01:31]}  Nd4 {[%clk 0:01:14]} 21. b4 {[%clk 0:01:02]}  Nxf3+ {[%clk 0:00:45]} 22. gxf3 {[%clk 0:00:59]}  axb4 {[%clk 0:00:31]} 23. axb4 {[%clk 0:00:58]}  Nd7 {[%clk 0:00:30]} 24. c5 {[%clk 0:00:55]}  Qc6 {[%clk 0:00:28]} 25. Qc4 {[%clk 0:00:55]}  Rde8 {[%clk 0:00:18]} 26. Qxd3 {[%clk 0:00:53]}  Bxb2 {[%clk 0:00:14]} 27. Rxb2 {[%clk 0:00:54]}  Nf6 {[%clk 0:00:12]} 28. Qd6 {[%clk 0:00:21]}  Qc8 {[%clk 0:00:12]} 29. Nc4 {[%clk 0:00:19]}  Nd5 {[%clk 0:00:10]} 30. Rbe2 {[%clk 0:00:11]}  Nf4 {[%clk 0:00:07]} 31. Re4 {[%clk 0:00:11]}  e5 {[%clk 0:00:06]} 32. Nxe5 {[%clk 0:00:06]}  Qh3 {[%clk 0:00:05]} 33. Rxf4 {[%clk 0:00:06]}  Rxf4 {[%clk 0:00:05]} 34. c6 {[%clk 0:00:03]}  bxc6 {[%clk 0:00:03]} 35. Qxc6 {[%clk 0:00:04]}  Qe6 {[%clk 0:00:03]} 36. b5 {[%clk 0:00:02]}  Qxc6 {[%clk 0:00:03]} 37. bxc6 {[%clk 0:00:03]}  Rf5 {[%clk 0:00:02]} 38. c7 {[%clk 0:00:03]}  Rc8 {[%clk 0:00:02]} 39. Nc6 {[%clk 0:00:02]}  Rxc7 {[%clk 0:00:02]} 40. Ne7+ {[%clk 0:00:02]}  Rxe7 {[%clk 0:00:03]} 41. Rxe7 {[%clk 0:00:03]}  Rxf3 {[%clk 0:00:03]} 42. Kg2 {[%clk 0:00:03]}  Rf7 {[%clk 0:00:04]} 43. Re3 {[%clk 0:00:03]}  g6 {[%clk 0:00:04]} 44. Re2 {[%clk 0:00:04]}  Kg7 {[%clk 0:00:05]} 45. Re3 {[%clk 0:00:04]}  Kf6 {[%clk 0:00:06]} 46. Re2 {[%clk 0:00:05]}  Kg5 {[%clk 0:00:06]} 47. Re3 {[%clk 0:00:06]}  Rf4 {[%clk 0:00:06]} 48. Re5+ {[%clk 0:00:05]}  Kf6 {[%clk 0:00:06]} 49. Re3 {[%clk 0:00:05]}  Kf5 {[%clk 0:00:06]} 50. Ra3 {[%clk 0:00:06]}  Rg4+ {[%clk 0:00:06]} 51. Kf3 {[%clk 0:00:06]}  Rf4+ {[%clk 0:00:07]} 52. Kg3 {[%clk 0:00:06]}  Re4 {[%clk 0:00:07]} 53. Kf3 {[%clk 0:00:06]}  Re5 {[%clk 0:00:07]} 54. Ra7 {[%clk 0:00:06]}  h5 {[%clk 0:00:07]} 55. h4 {[%clk 0:00:04]}  Kf6 {[%clk 0:00:06]} 56. Kf4 {[%clk 0:00:03]}  Rf5+ {[%clk 0:00:06]} 57. Kg3 {[%clk 0:00:04]}  Rb5 {[%clk 0:00:06]} 58. Ra6+ {[%clk 0:00:03]}  Kg7 {[%clk 0:00:06]} 59. Ra3 {[%clk 0:00:03]}  Rb4 {[%clk 0:00:06]} 60. Rd3 {[%clk 0:00:04]}  Kf6 {[%clk 0:00:05]} 61. Rf3+ {[%clk 0:00:03]}  Kg7 {[%clk 0:00:04]} 62. Rd3 {[%clk 0:00:04]}  Rg4+ {[%clk 0:00:04]} 63. Kh3 {[%clk 0:00:04]}  Rf4 {[%clk 0:00:04]} 64. Kg3 {[%clk 0:00:04]}  Rg4+ {[%clk 0:00:05]} 65. Kh3 {[%clk 0:00:05]}  Rf4 {[%clk 0:00:05]} 66. Kg3 {[%clk 0:00:05]}  Rg4+ {[%clk 0:00:05]} 1/2-1/2


[Site "https://www.chess.com"]

[Event "Titled Tuesday Blitz May 23 Early 2023"]
[White "Kuzmin, Roman"]
[Black "Javakhadze, Zurab"]
[WhiteFideId "44134932"]
[BlackFideId "13603647"]
[WhiteElo "2122"]
[BlackElo "2381"]
[Result "0-1"]
[Round "05"]
[TimeControl "180+2"]
[Date "2023.05.23"]
[WhiteClock "0:00:00"]
[BlackClock "0:00:06"]

1. e4 {[%clk 0:03:00]}  e5 {[%clk 0:02:56]} 2. Nf3 {[%clk 0:03:00]}  Nc6 {[%clk 0:02:56]} 3. Bb5 {[%clk 0:03:01]}  a6 {[%clk 0:02:54]} 4. Ba4 {[%clk 0:03:01]}  Nf6 {[%clk 0:02:54]} 5. O-O {[%clk 0:03:01]}  Be7 {[%clk 0:02:53]} 6. Re1 {[%clk 0:03:00]}  b5 {[%clk 0:02:47]} 7. Bb3 {[%clk 0:03:00]}  d6 {[%clk 0:02:47]} 8. c3 {[%clk 0:03:00]}  O-O {[%clk 0:02:47]} 9. h3 {[%clk 0:03:01]}  Nb8 {[%clk 0:02:40]} 10. d4 {[%clk 0:03:00]}  Nbd7 {[%clk 0:02:40]} 11. Nbd2 {[%clk 0:02:59]}  Bb7 {[%clk 0:02:41]} 12. Bc2 {[%clk 0:02:57]}  Re8 {[%clk 0:02:39]} 13. Nf1 {[%clk 0:02:50]}  Bf8 {[%clk 0:02:38]} 14. Ng3 {[%clk 0:02:48]}  g6 {[%clk 0:02:38]} 15. a4 {[%clk 0:02:45]}  c5 {[%clk 0:02:28]} 16. d5 {[%clk 0:02:39]}  c4 {[%clk 0:02:28]} 17. b4 {[%clk 0:02:28]}  cxb3 {[%clk 0:02:27]} 18. Bxb3 {[%clk 0:02:28]}  Nc5 {[%clk 0:02:24]} 19. Bc2 {[%clk 0:02:28]}  bxa4 {[%clk 0:02:15]} 20. Be3 {[%clk 0:02:22]}  Rc8 {[%clk 0:02:14]} 21. Nd2 {[%clk 0:02:16]}  Re7 {[%clk 0:02:08]} 22. c4 {[%clk 0:02:01]}  Rec7 {[%clk 0:02:05]} 23. Bxa4 {[%clk 0:02:01]}  Nxa4 {[%clk 0:01:56]} 24. Qxa4 {[%clk 0:02:02]}  Nd7 {[%clk 0:01:56]} 25. Rec1 {[%clk 0:01:51]}  h5 {[%clk 0:01:51]} 26. Nb3 {[%clk 0:01:48]}  Kh7 {[%clk 0:01:46]} 27. Rc2 {[%clk 0:01:40]}  Bh6 {[%clk 0:01:43]} 28. Nf1 {[%clk 0:01:17]}  f5 {[%clk 0:01:26]} 29. Bxh6 {[%clk 0:01:05]}  Kxh6 {[%clk 0:01:25]} 30. Qb4 {[%clk 0:01:01]}  Nf6 {[%clk 0:01:17]} 31. exf5 {[%clk 0:00:54]}  gxf5 {[%clk 0:01:11]} 32. Ng3 {[%clk 0:00:51]}  Kg6 {[%clk 0:01:01]} 33. Rcc1 {[%clk 0:00:10]}  f4 {[%clk 0:00:39]} 34. Nf1 {[%clk 0:00:06]}  Rb8 {[%clk 0:00:31]} 35. Qd2 {[%clk 0:00:04]}  Bxd5 {[%clk 0:00:25]} 36. cxd5 {[%clk 0:00:03]}  Rxb3 {[%clk 0:00:25]} 37. Rxc7 {[%clk 0:00:02]}  Qxc7 {[%clk 0:00:26]} 38. Rxa6 {[%clk 0:00:03]}  Qc4 {[%clk 0:00:21]} 39. Rxd6 {[%clk 0:00:02]}  Rb1 {[%clk 0:00:21]} 40. Kh2 {[%clk 0:00:02]}  Qxf1 {[%clk 0:00:18]} 41. Qc2+ {[%clk 0:00:02]}  Kg5 {[%clk 0:00:17]} 42. h4+ {[%clk 0:00:01]}  Kxh4 {[%clk 0:00:06]} 43. g3+ {[%clk 0:00:01]}  Kg4 {[%clk 0:00:06]} 44. Qg6+ {[%clk 0:00:00]}  Kf3 {[%clk 0:00:06]} 0-1


[Site "https://www.chess.com"]

[Event "Titled Tuesday Blitz May 23 Early 2023"]
[White "Starozhilov, Leonid"]
[Black "Arat, Ufuk Sezen"]
[WhiteFideId "14106752"]
[BlackFideId "6309089"]
[WhiteElo "2352"]
[BlackElo "2289"]
[Result "1-0"]
[Round "05"]
[TimeControl "180+2"]
[Date "2023.05.23"]
[WhiteClock "0:00:17"]
[BlackClock "0:00:01"]

1. e4 {[%clk 0:03:00]}  c5 {[%clk 0:02:50]} 2. Nf3 {[%clk 0:03:00]}  e6 {[%clk 0:02:49]} 3. c4 {[%clk 0:02:57]}  Nc6 {[%clk 0:02:49]} 4. Nc3 {[%clk 0:02:56]}  Nf6 {[%clk 0:02:49]} 5. d4 {[%clk 0:02:56]}  cxd4 {[%clk 0:02:49]} 6. Nxd4 {[%clk 0:02:57]}  Bb4 {[%clk 0:02:49]} 7. Nxc6 {[%clk 0:02:57]}  bxc6 {[%clk 0:02:50]} 8. Bd3 {[%clk 0:02:57]}  d5 {[%clk 0:02:49]} 9. exd5 {[%clk 0:02:56]}  exd5 {[%clk 0:02:49]} 10. cxd5 {[%clk 0:02:55]}  Nxd5 {[%clk 0:02:49]} 11. O-O {[%clk 0:02:54]}  O-O {[%clk 0:02:47]} 12. Ne4 {[%clk 0:02:50]}  Be7 {[%clk 0:02:46]} 13. a3 {[%clk 0:02:37]}  Bf5 {[%clk 0:02:44]} 14. Qc2 {[%clk 0:02:37]}  Qb6 {[%clk 0:02:31]} 15. Bd2 {[%clk 0:02:18]}  Rad8 {[%clk 0:02:29]} 16. Rad1 {[%clk 0:02:13]}  Kh8 {[%clk 0:02:20]} 17. Rfe1 {[%clk 0:02:08]}  Bxe4 {[%clk 0:01:40]} 18. Rxe4 {[%clk 0:01:51]}  f5 {[%clk 0:01:32]} 19. Re6 {[%clk 0:01:45]}  Bf6 {[%clk 0:01:28]} 20. b4 {[%clk 0:01:39]}  Qd4 {[%clk 0:01:10]} 21. Rxc6 {[%clk 0:01:27]}  Nf4 {[%clk 0:00:38]} 22. Bf1 {[%clk 0:01:07]}  Qd5 {[%clk 0:00:18]} 23. Rc5 {[%clk 0:00:55]}  Qd6 {[%clk 0:00:19]} 24. Rxf5 {[%clk 0:00:42]}  Ne6 {[%clk 0:00:19]} 25. Qe4 {[%clk 0:00:28]}  Bc3 {[%clk 0:00:14]} 26. Bxc3 {[%clk 0:00:18]}  Qxd1 {[%clk 0:00:14]} 27. Qxe6 {[%clk 0:00:18]}  Rxf5 {[%clk 0:00:13]} 28. Qxf5 {[%clk 0:00:18]}  Rg8 {[%clk 0:00:03]} 29. Qe5 {[%clk 0:00:17]}  Qb3 {[%clk 0:00:02]} 30. Bb2 {[%clk 0:00:17]}  Qf7 {[%clk 0:00:01]} 31. h4 {[%clk 0:00:17]}  Qf6 {[%clk 0:00:01]} 32. Qxf6 {[%clk 0:00:17]} 1-0


[Site "https://www.chess.com"]

[Event "Titled Tuesday Blitz May 23 Early 2023"]
[White "Gheorghiu, Calin"]
[Black "SereneSalmon"]
[WhiteFideId "1200305"]
[WhiteElo "2223"]
[BlackElo "2527"]
[Result "1-0"]
[Round "05"]
[TimeControl "180+2"]
[Date "2023.05.23"]
[WhiteClock "0:00:36"]
[BlackClock "0:00:14"]

1. e4 {[%clk 0:03:00]}  Nf6 {[%clk 0:02:57]} 2. e5 {[%clk 0:03:00]}  Nd5 {[%clk 0:02:58]} 3. d4 {[%clk 0:03:01]}  d6 {[%clk 0:02:58]} 4. c4 {[%clk 0:03:01]}  Nb6 {[%clk 0:02:59]} 5. f4 {[%clk 0:03:01]}  dxe5 {[%clk 0:02:57]} 6. fxe5 {[%clk 0:03:02]}  c5 {[%clk 0:02:50]} 7. d5 {[%clk 0:02:57]}  g6 {[%clk 0:02:49]} 8. Nc3 {[%clk 0:02:52]}  Bg7 {[%clk 0:02:49]} 9. Bf4 {[%clk 0:02:42]}  O-O {[%clk 0:02:46]} 10. Qe2 {[%clk 0:02:19]}  N8d7 {[%clk 0:02:40]} 11. O-O-O {[%clk 0:02:17]}  a6 {[%clk 0:02:31]} 12. h4 {[%clk 0:02:17]}  Qc7 {[%clk 0:02:30]} 13. Nf3 {[%clk 0:02:12]}  e6 {[%clk 0:02:09]} 14. d6 {[%clk 0:02:09]}  Qc6 {[%clk 0:02:09]} 15. h5 {[%clk 0:02:07]}  Na4 {[%clk 0:02:07]} 16. Ne4 {[%clk 0:02:01]}  b5 {[%clk 0:01:55]} 17. hxg6 {[%clk 0:01:29]}  fxg6 {[%clk 0:01:53]} 18. Bh6 {[%clk 0:01:29]}  bxc4 {[%clk 0:01:08]} 19. Bxg7 {[%clk 0:01:24]}  Kxg7 {[%clk 0:01:09]} 20. Nfg5 {[%clk 0:01:23]}  h5 {[%clk 0:00:53]} 21. Nxe6+ {[%clk 0:01:22]}  Kg8 {[%clk 0:00:54]} 22. Nxf8 {[%clk 0:01:19]}  Nxf8 {[%clk 0:00:54]} 23. Qxc4+ {[%clk 0:01:16]}  Be6 {[%clk 0:00:54]} 24. Nf6+ {[%clk 0:01:14]}  Kg7 {[%clk 0:00:50]} 25. Qe4 {[%clk 0:01:11]}  Qb6 {[%clk 0:00:46]} 26. Qxa4 {[%clk 0:01:09]}  Rb8 {[%clk 0:00:45]} 27. Rd2 {[%clk 0:01:07]}  c4 {[%clk 0:00:42]} 28. Bxc4 {[%clk 0:00:53]}  Rc8 {[%clk 0:00:28]} 29. Ne8+ {[%clk 0:00:53]}  Kh8 {[%clk 0:00:20]} 30. Nc7 {[%clk 0:00:52]}  Bxc4 {[%clk 0:00:16]} 31. Qxc4 {[%clk 0:00:52]}  Ne6 {[%clk 0:00:17]} 32. Qxe6 {[%clk 0:00:41]}  Rxc7+ {[%clk 0:00:14]} 33. dxc7 {[%clk 0:00:36]} 1-0


[Site "https://www.chess.com"]